Cogmind - Beta 13 X2 @@@ ROGUE MODE // 2024.01.13 @ 01:26:21 Player: Minty Result: Destroyed by FG-12O(R) with Subdweller Laser Performance ------------- Evolutions (0) 0 Regions Visited (3) 600 Robots Destroyed (20) 100 Value Destroyed (504) 504 Prototype IDs (0) 0 Alien Tech Used (0) 0 Bonus (0) 0 TOTAL SCORE: 1204 Bonus ------- None Cogmind --------- Core Integrity 0/250 Matter 10/300 Energy 249/250 System Corruption 14% Temperature Cool (6) Movement Rolling (80) Location -10/Subcaves Parts ------- > --- POWER (1) -------- Ion Engine > --- PROPULSION (2) --- Wheel Wheel > --- UTILITY (2) ------ (None) > --- WEAPON (2) ------- Battle Rifle > --- INVENTORY (5) ---- Subdweller Machine Gun Subdweller Machine Gun Dirty Datajack (20) Shrapnel Trap Peak State ------------ > --- POWER ------------ Ion Engine > --- PROPULSION ------- Aluminum Leg Aluminum Leg > --- UTILITY ---------- Small Storage Unit Improved Terrain Scanner > --- WEAPON ----------- Medium Laser Small Laser > --- INVENTORY -------- Light Treads Compact Wheel Compact Wheel Flight Unit Improved Heat Sink Grenade Launcher Datajack Mining Claw [Rating: 10] Favorites ----------- Power Ion Engine Engine Ion Engine Propulsion Aluminum Leg Treads Light Treads Leg Aluminum Leg Wheel Wheel Flight Unit Flight Unit Utility Small Storage Unit Device Improved Heat Sink Storage Small Storage Unit Weapon Small Laser Energy Gun Small Laser Ballistic Gun Subdweller Machine Gun Launcher Grenade Launcher Slashing Weapon Mining Claw Build | -11 -10 -10 -10 ------- Run | Yrd Mat Min Sub Slots Evolved . | . . . . Power . | . . . . Propulsion . | . . . . Utility . | . . . . Weapon . | . . . . Parts Attached 31 | . 6 8 17 Power 4 | . 1 1 2 Engine 4 | . 1 1 2 Core . | . . . . Reactor . | . . . . Propulsion 13 | . 2 4 7 Treads 1 | . . . 1 Leg 4 | . . 4 . Wheel 5 | . . . 5 Hover . | . . . . Flight 3 | . 2 . 1 Utility 4 | . 2 1 1 Device 4 | . 2 1 1 Storage . | . . . . Processor . | . . . . Hackware . | . . . . Protection . | . . . . Artifact . | . . . . Weapon 10 | . 1 2 7 Energy Gun 3 | . 1 1 1 Energy Cannon . | . . . . Ballistic Gun 4 | . . . 4 Ballistic Cannon . | . . . . Launcher 2 | . . . 2 Special Weapon . | . . . . Impact Weapon . | . . . . Slashing Weapon 1 | . . 1 . Piercing Weapon . | . . . . Special Melee Weapon . | . . . . Unidentified Prototypes . | . . . . Parts Lost 11 | . 1 2 8 Power 4 | . 1 1 2 Propulsion 4 | . . 1 3 Utility 1 | . . . 1 Weapon 2 | . . . 2 Highest Loss Streak 4 | . 1 2 4 To Critical Strikes . | . . . . Average Slot Usage (%) 82 | . 94 96 68 Engine 12 | . 13 12 12 Leg 14 | . 24 24 5 Wheel 9 | . . . 18 Flight 2 | . 3 2 1 Device 8 | . 9 14 6 Storage 10 | . 14 14 6 Energy Gun 16 | . 28 24 7 Ballistic Gun 3 | . . . 7 Launcher 1 | . . . 2 Naked Turns . | . . . . Heaviest Build 17 | 10 12 14 17 Greatest Support 36 | 20 20 20 36 Greatest Overweight (x) 4 | . 2 2 4 Average Overweight (x) . | . . . . Largest Inventory Capacity 8 | . 8 8 8 Average Capacity 7 | . 8 8 6 Most Carried 8 | . 8 8 8 Average Carried 6 | . 7 7 6 Final Capacity 8 | 8 8 8 5 Final Carried 8 | 6 8 8 4 Class Distribution -------------------- 58% | Mutant 41% | Scavenger-Mutant Dominant Class ---------------- Mutant | -10/Materials Scavenger-Mutant | -10/Mines Mutant | -10/Subcaves Resources | -11 -10 -10 -10 ----------- Run | Yrd Mat Min Sub Matter Collected 478 | 200 64 77 137 Remotely . | . . . . Salvage Created 616 | . 357 119 140 Parts 35 | . 20 9 6 Haulers Intercepted . | . . . . Recyclers Shooed . | . . . . Parts Field Recycled . | . . . . Retrieved Matter . | . . . . Parts Self-Destructed . | . . . . Prevented . | . . . . Kills | -11 -10 -10 -10 ------- Run | Yrd Mat Min Sub Combat Hostiles Destroyed 17 | . 10 2 5 Guns 14 | . 10 2 2 AOE 3 | . . . 3 Classes Destroyed 6 | . 4 1 1 Worker 1 | . 1 . . Tunneler 1 | . . 1 . Recycler 1 | . 1 . . Swarmer 6 | . 6 . . Grunt 6 | . 4 2 . Subdweller 5 | . . . 5 Best Kill Streak 7 | . 7 2 2 Combat Bots Only 6 | . 6 2 2 Max Kills in Single Turn 2 | . 2 1 1 Gunslinging 1 | . 1 . . Exploded 1 | . . . 1 Melee . | . . . . Uniques/NPCs Destroyed . | . . . . Combat | -11 -10 -10 -10 -------- Run | Yrd Mat Min Sub Hostile Shots Fired 122 | . 69 15 38 Missed 37 | . 19 6 12 Damage Taken 1469 | . 457 113 899 Core 260 | . 95 27 138 Absorbed by Shields . | . . . . Core Remaining (%) 100 | 100 . . . Volleys Fired 65 | . 29 11 25 Largest 2 | . 2 2 2 Hottest 90 | . 90 90 90 Shots Fired 127 | . 57 22 48 Gun 119 | . 57 22 40 Cannon . | . . . . Launcher 8 | . . . 8 Special . | . . . . Kinetic 12 | . . . 12 Thermal 107 | . 57 22 28 Explosive 8 | . . . 8 Electromagnetic . | . . . . Robot Hit Streak 23 | . 9 4 23 Robot Miss Streak 4 | . 4 3 2 Penetration Max . | . . . . Secondary Targets 1 | . 1 . . Max Gunslinging Chain 1 | . 1 . . Shots Hit Robots 75 | . 30 12 33 Core Hits 35 | . 18 6 11 Critical Kills . | . . . . Critical Parts Destroyed . | . . . . Critical Strikes 4 | . 1 . 3 Burn 4 | . 1 . 3 Melee Attacks 7 | . . 7 . Impact . | . . . . Slashing 7 | . . 7 . Piercing . | . . . . Sneak Attacks . | . . . . Combat Hostiles . | . . . . Follow-up Attacks . | . . . . Damage Inflicted 1430 | . 433 173 824 Guns 953 | . 428 173 352 Cannons . | . . . . Explosions 472 | . . . 472 Melee . | . . . . Ramming 5 | . 5 . . Kinetic 68 | . . . 68 Thermal 885 | . 428 173 284 Explosive 472 | . . . 472 Electromagnetic . | . . . . Impact . | . . . . Slashing . | . . . . Piercing . | . . . . Highest Corruption 14 | . 1 1 14 Average Corruption 4 | . 1 1 8 Corruption Purged . | . . . . Corruption Blocked . | . . . . Effects 13 | . 4 . 9 Message Errors 4 | . 2 . 2 Matter Fused 4 | . 1 . 3 Heat Flow Errors 1 | . . . 1 Energy Discharges 1 | . . . 1 Parts Rejected 1 | . . . 1 Alerts 1 | . . . 1 Weapon Failures 1 | . 1 . . Overload Shots . | . . . . Overflow Damage . | . . . . Projectiles . | . . . . Explosions . | . . . . Melee . | . . . . Knockbacks . | . . . . Impact . | . . . . Kinetic . | . . . . Secondary . | . . . . Self-Inflicted Damage . | . . . . Shots . | . . . . Rammed . | . . . . Targets Rammed 1 | . 1 . . Kicked 1 | . 1 . . Crushed . | . . . . Highest Temperature 201 | . 162 30 201 Average Temperature 56 | . 63 19 101 Received Heat Transfer 216 | . 117 63 36 Siege Activations . | . . . . Robots Corrupted . | . . . . Combat Hostiles . | . . . . Parts Fried . | . . . . Impact Corruptions . | . . . . Robots Melted . | . . . . Combat Hostiles . | . . . . Parts Melted 4 | . 2 1 1 Heat Transferred 2616 | . 1191 447 978 Parts Sabotaged . | . . . . Parts Stolen . | . . . . Parts Stripped . | . . . . Power Chain Reactions . | . . . . Missiles Intercepted . | . . . . Alert | -11 -10 -10 -10 ------- Run | Yrd Mat Min Sub Peak Influence 300 | . 300 152 . Initial 117 | . . 117 . Average 129 | . 119 145 . Maximum Alert Level 1 | . 1 . . Low Security (%) 86 | . 78 100 . Level 1 13 | . 21 . . Level 2 . | . . . . Level 3 . | . . . . Level 4 . | . . . . Level 5 . | . . . . High Security . | . . . . Max Security . | . . . . Squads Dispatched 1 | . 1 . . Investigation 1 | . 1 . . Extermination . | . . . . Reinforcement . | . . . . Assault . | . . . . Garrison . | . . . . Intercept . | . . . . Searches Triggered . | . . . . Construction Impeded . | . . . . Haulers Reinforced . | . . . . Active Scanning Responses . | . . . . Cargo Convoy Interrupts . | . . . . Stealth | -11 -10 -10 -10 --------- Run | Yrd Mat Min Sub Distress Signals . | . . . . Communications Jammed . | . . . . Distress Signals . | . . . . Times Spotted 22 | . 14 2 6 Peak Tracking Total 7 | . 7 2 2 Tactical Retreats 1 | . 1 . . Traps | -11 -10 -10 -10 ------- Run | Yrd Mat Min Sub Traps Triggered . | . . . . Indirectly . | . . . . Trap Hack Attempts . | . . . . Triggered . | . . . . Disarmed . | . . . . Reprogrammed . | . . . . Reused . | . . . . Traps Extracted . | . . . . Installed . | . . . . Triggered . | . . . . Most Traps Carried 1 | . . . 1 Machines | -11 -10 -10 -10 ---------- Run | Yrd Mat Min Sub Machines Disabled . | . . . . Max in Single Turn . | . . . . Machines Repaired . | . . . . Machines Dismantled . | . . . . Machines Sabotaged . | . . . . Overloaded Fab Kills . | . . . . Hacking | -11 -10 -10 -10 --------- Run | Yrd Mat Min Sub Machines Accessed 3 | . 3 . . Terminals 3 | . 3 . . Fabricators . | . . . . Repair Stations . | . . . . Recycling Units . | . . . . Scanalyzers . | . . . . Garrison Access . | . . . . Total Hacks 10 | . 10 . . Successful 7 | . 7 . . Failed 3 | . 3 . . Catastrophic 1 | . 1 . . Database Lockouts . | . . . . Manual 6 | . 6 . . Terminals 10 | . 10 . . Fabricators . | . . . . Repair Stations . | . . . . Recycling Units . | . . . . Scanalyzers . | . . . . Garrison Access . | . . . . Terminal Hacks 5 | . 5 . . Branch Access Points 1 | . 1 . . Terminal Index 1 | . 1 . . Locate Traps 1 | . 1 . . Zone Layout 2 | . 2 . . Fabricator Hacks . | . . . . Repair Station Hacks . | . . . . Recycling Unit Hacks . | . . . . Scanalyzer . | . . . . Garrison Access Hacks . | . . . . Unauthorized Hacks 2 | . 2 . . Terminals 2 | . 2 . . Botnet 2 | . 2 . . Fabricators . | . . . . Repair Stations . | . . . . Recycling Units . | . . . . Scanalyzers . | . . . . Garrison Access . | . . . . Data Cores Recovered . | . . . . Used . | . . . . Hacking Detections 3 | . 3 . . Full Trace Events 2 | . 2 . . Feedback Events 1 | . 1 . . Corruption 1 | . 1 . . Feedback Blocked . | . . . . Robot Schematics Acquired . | . . . . Robots Built . | . . . . Authchips . | . . . . Time . | . . . . Total Robot Build Rating . | . . . . Part Schematics Acquired . | . . . . Parts Built . | . . . . Authchips . | . . . . Time . | . . . . Total Part Build Rating . | . . . . Parts Repaired . | . . . . Time . | . . . . Parts Recycled . | . . . . Recycled Matter . | . . . . Retrieved Matter . | . . . . Retrieved Components . | . . . . Parts Scanalyzed . | . . . . Part Schematics Acquired . | . . . . Parts Damaged . | . . . . Bothacking | -11 -10 -10 -10 ------------ Run | Yrd Mat Min Sub Used RIF Installer . | . . . . Robots Hacked . | . . . . Non-combat . | . . . . Combat . | . . . . Robot Hacks Applied . | . . . . Relay Couplers Released . | . . . . Fabnet Peak Effective % . | . . . . Robots Rewired . | . . . . Allies Hacked . | . . . . Hacks Repelled . | . . . . Allies | -11 -10 -10 -10 -------- Run | Yrd Mat Min Sub Total Allies . | . . . . Largest Group . | . . . . Highest-Rated Group . | . . . . Highest-Rated Ally . | . . . . Total Orders . | . . . . Ally Attacks . | . . . . Total Damage . | . . . . Kills . | . . . . Allies Corrupted . | . . . . Allies Melted . | . . . . Intel | -11 -10 -10 -10 ------- Run | Yrd Mat Min Sub Robot Analysis Total . | . . . . Derelict Logs Recovered 1 | . . . 1 Drone Launches . | . . . . Drone Recoveries . | . . . . Exploration | -11 -10 -10 -10 ------------- Run | Yrd Mat Min Sub Turns Passed 943 | . 289 180 474 Spaces Moved 443 | 1 154 63 225 Core . | . . . . Treads . | . . . . Legs 239 | 1 130 60 48 Wheels 127 | . . . 127 Hover . | . . . . Flight 77 | . 24 3 50 Fastest Speed 40 | 120 117 120 40 Average Speed 109 | 120 121 123 96 Slowest Speed 360 | 120 200 200 360 Overloaded Moves . | . . . . Propulsion Burnouts . | . . . . Robots Hopped . | . . . . Cave-ins Triggered 1 | . . . 1 Exploration Rate (%) 20 | 2 37 16 25 Regions Visited 3 Branch Regions 2 Pre-discovered Areas . | . . . . Known Exits Taken 1 | . 1 . . Unknown Exits Taken 2 | 1 . 1 . Scrap Searched . | . . . . Spaces Dug 1 | . . 1 . Terrain Destroyed 31 | . . 1 30 Melee 1 | . . 1 . Projectile . | . . . . AOE 30 | . . . 30 Terrain Rammed . | . . . . Walls Destroyed . | . . . . Machines Disabled . | . . . . Actions | -11 -10 -10 -10 --------- Run | Yrd Mat Min Sub Total 763 | . 198 128 437 Wait 183 | . . 34 149 Move 440 | . 153 62 225 Hop . | . . . . Pick Up 10 | . 4 1 5 Fast Attach 17 | . 3 4 10 Attach 3 | . 1 . 2 Detach 4 | . 1 . 3 Swap 11 | . 2 4 5 Drop 22 | . 4 5 13 Fire 65 | . 29 11 25 Melee 7 | . . 7 . Ram . | . . . . Kick 1 | . 1 . . Crush . | . . . . Escape Stasis . | . . . . Rewire . | . . . . Trap . | . . . . Miscellaneous . | . . . . Route ------- -11/Scrapyard -10/Materials (discovered 2 exits: *Min x2) -10/Mines -10/Subcaves History --------- Turn | Location | Event 1 | -11/Scrapyard | Discovered new exit (range 0) 1 | -11/Scrapyard | Entered Materials 44 | -10/Materials | Identified exit to Mines 290 | -10/Materials | Entered Mines 308 | -10/Mines | Build established: Mutant 464 | -10/Mines | Discovered new exit (range 4) 470 | -10/Mines | Entered Subcaves 492 | -10/Subcaves | Core integrity fell below 50% 502 | -10/Subcaves | Core integrity fell below 20% 559 | -10/Subcaves | Lost 3 parts (1p1n1u) 672 | -10/Subcaves | Crushed by falling debris 672 | -10/Subcaves | System corruption reached 10% 703 | -10/Subcaves | Lost 4 parts (1p2n1w) 944 | -10/Subcaves | Destroyed by FG-12O(R) with Subdweller Laser Last Messages --------------- 00874_ Acquired Sub. Machine Gun. 00876_ Dropped Grenade Launcher. 00877_ Acquired Shrapnel Trap. 00878_ Dropped Cobbler Unit. 00879_ Acquired Grenade Launcher. 00886_ Acquired derelict log, extracted data. Data stored: Storage entrances (x1). 00890_ System corrupted: Energy discharge (-56). 00894_ Acquired 10 matter. 00899_ Acquired 7 matter. 00902_ Acquired 6 matter. 00904_ Acquired 5 matter. 00906_ Acquired 10 matter. 00920_ System corrupted: Battle Rifle rejected. 00920_ Acquired Battle Rifle. 00922_ HK-IVW(R) destroyed. 00937_ Acquired 6 matter. 00938_ Acquired 15 matter. 00942_ The unstable cave ceiling collapses. 00942_ Grenade Launcher destroyed. Map ----- +----------------------------------------------------+ | ?????????????????????????????????????????????????? | | ?????????????????????????????????????????????????? | | ?????????????????????????????????????????????????? | | ?????????????????????????????????????????????????? | | ?????????????????????????????????????????????????? | | ?????????????????????????????????????????????????? | | ?????????????????????????????????????????????????? | | ?????????????????????????????????????????????????? | | ?????????????????????????????????????????????????? | | ?????????????????????????????????????????????????? | | ?????????????????????????????????????????????????? | | ??????????????????????????"??????????????????????? | | ?????????????????????????" ??????????????????????? | | ???????????????????????""" ??????????????????????? | | ???????????????????????#" ##??????? ????????????? | | ??????????????????????? "" ??????? ????????????? | | ???????????????????????# ?????? ???????????? | | ???????????????????????# #???? ????????????? | | ???????????????????????# ##??? #?????????????? | | ?????????????????????### ??? #?????????????? | | ????????????????????## #??# #?????????????? | | ???????? ???????????# ### #??????????????? | | ??????? ?##???????# #??????????????? | | ??????? ## ??????# #???????????????? | | ?????? ??##### #????????????????? | | ?????? ### @ #????????????????? | | ????? ###????????????????? | | ????????# ## "#??????????????????? | | ????????## ### ## ????????????????? | | ?????????# ### ####""????????????????? | | ????????## ## ####"""????????????????? | | ????????# ## """"????????????????? | | ????????# ### ### R """"" ????????????? | | ????????# ???# ### """"" #?????????????? | | ???????# ????# ## ] ! #??????????????? | | ???????????????# ##??????????????? | | ???????????????## "##???????????????? | | ????????????????# "#????????????????? | | ???????????????## ## ""#????????????????? | | ????? ????????## ## #????????????????? | | ???? ??????### ##????????????????? | | ???? ?????# #### ###?????????????????? | | ???## ??#### ##???# #???????????????????? | | ???# ??# # ##????? #???????????????????? | | ???# #??# #####?????? #??????????????????? | | ???? ??# ###??????????? #??????????????????? | | ????# ?# ###??????????? #?????????????????? | | ????? ?# ##??????????? #?????????????????? | | ?????# ?# #??????????? #?????????????????? | | ?????# ?# ##???????????####?????????????????? | +----------------------------------------------------+ Best States ------------- Heat Dissipation 39 Energy Generation 15 Energy Capacity 250 Matter Stores 300 Matter Capacity 300 Sight Range 16 Terrain Scan Range 16 Terrain Scan Density 10 Evasion (%) 62 Item Schematics ----------------- None Robot Schematics ------------------ None Fabricated ------------ Nothing Alien Tech Used ----------------- None Achievements -------------- None Challenges ------------ None Game ------ Seed RecyclingHardenedBlaster Manual? 0 Play Time 00:08:05 Cumulative 588.4 hours Start 2024.01.13 @ 01:20:52 End 2024.01.13 @ 01:26:21 Sessions 1 Manual Loads 0 Difficulty Rogue Special Mode None Game No. 514 Rogue 241 Adventurer 123 Explorer 150 Win Type - Total 25 Types 19/0/4/1/0/0/0/1/0 Lore% 78 Gallery% 90 Achievement% 75 Wizard Run 0 Options --------- ASCII 0 Keyboard 1 Movement Numpad Keybinds 0 Fullscreen 2 Font 18/X11Bold Map View 76x50 Zoom Use 0% Tactical HUD 1 Map Filters NONE Filters NONE Steam 1 RUN: 39d54876-5c24-4a82-a278-1a7c71c9bb3e